fUST/lending_fUST_20251218
["ID","MTS","AMOUNT","RATE_DAILY","PERIOD"]
[398941218,1766011831894,-250.0,0.00038247,30]
[398941219,1766011831905,-1980.93604746,0.00038391,2]
[398941220,1766011831915,-4543.23382379,0.00038424,2]
[398941221,1766011831927,-988.94503828,0.00038424,2]
[398941222,1766011831938,-17.88458279,0.0003849,120]
[398941223,1766011831950,-141.46541721,0.0003849,120]
[398941224,1766011831960,-500.0,0.0003849,120]
[398941225,1766011831970,-229.6139234,0.0003849,3]
[398941226,1766011831980,-162.168,0.0003849,51]
[398941227,1766011831991,-151.0,0.00038491,120]
[398941228,1766011832001,-151.0,0.00038491,120]
[398941229,1766011832011,-151.0,0.00038491,120]
[398941230,1766011832021,-151.0,0.00038491,120]
[398941231,1766011832032,-151.0,0.00038491,120]
[398941232,1766011832043,-151.0,0.00038491,120]
[398941233,1766011832058,-151.0,0.00038491,120]
[398941234,1766011832068,-151.0,0.00038491,120]
[398941235,1766011832079,-274.198073,0.00038491,120]
[398941236,1766011832091,-151.0,0.00038491,120]
[398941237,1766011832103,-151.0,0.00038491,120]
[398941238,1766011832113,-151.0,0.00038491,120]
[398941239,1766011832123,-151.0,0.00038491,120]
[398941240,1766011832135,-223.651374,0.00038491,120]
[398941241,1766011832145,-151.0,0.00038491,120]
[398941242,1766011832155,-188.198064,0.00038491,120]
[398941243,1766011832166,-151.0,0.00038491,120]
[398941244,1766011832176,-151.0,0.00038491,120]
[398941245,1766011832186,-151.0,0.00038491,120]
[398941246,1766011832196,-151.0,0.00038491,120]
[398941247,1766011832207,-151.0,0.00038491,120]
[398941248,1766011832217,-194.306752,0.00038491,120]
[398941249,1766011832228,-233.676349,0.00038491,120]
[398941250,1766011832239,-1071.53612,0.00038491,120]
[398941251,1766011832250,-1071.53612,0.00038491,120]
[398941252,1766011832261,-1071.53612,0.00038491,120]
[398941253,1766011832271,-1071.53612,0.00038491,120]
[398941254,1766011832281,-1071.53612,0.00038491,120]
[398941255,1766011832290,-22.31354657,0.00038491,120]
[398941256,1766011832303,-1049.22257343,0.00038491,120]
[398941257,1766011832312,-1071.53612,0.00038491,120]
[398941258,1766011832321,-1071.53612,0.00038491,120]
[398941259,1766011832330,-1071.53612,0.00038491,120]
[398941260,1766011832462,-1071.53612,0.00038491,120]
[398941261,1766011832472,-1071.53612,0.00038491,120]
[398941262,1766011832481,-1071.53612,0.00038491,120]
[398941263,1766011832490,-1071.53612,0.00038491,120]
[398941264,1766011832499,-68.02458657,0.00038491,120]
[398941291,1766011837643,-168.64419,0.00038491,120]
[398941293,1766011837653,-151.0,0.00038491,120]
[398941295,1766011837662,-151.0,0.00038491,120]
[398941297,1766011837671,-29.35581,0.00038491,120]
[398941299,1766011837682,-261.846698,0.00038491,120]
[398941301,1766011837690,-150.13291998,0.00038491,120]
[398941304,1766011837704,-0.86708002,0.00038491,120]
[398941306,1766011837713,-151.0,0.00038491,120]
[398941308,1766011837722,-151.0,0.00038491,120]
[398941310,1766011837731,-151.0,0.00038491,120]
[398941312,1766011837740,-151.0,0.00038491,120]
[398941314,1766011837749,-151.0,0.00038491,120]
[398941316,1766011837758,-151.0,0.00038491,120]
[398941318,1766011837767,-151.0,0.00038491,120]
[398941320,1766011837775,-151.0,0.00038491,120]
[398941322,1766011837784,-151.0,0.00038491,120]
[398941323,1766011837793,-151.0,0.00038491,120]
[398941325,1766011837802,-151.0,0.00038491,120]
[398941327,1766011837811,-151.0,0.00038491,120]
[398941330,1766011837819,-151.0,0.00038491,120]
[398941332,1766011837831,-151.0,0.00038491,120]
[398941333,1766011837840,-151.0,0.00038491,120]
[398941335,1766011837848,-289.019008,0.00038491,120]
[398941337,1766011837857,-1777.927522,0.00038491,120]
[398941339,1766011837866,-1777.927522,0.00038491,120]
[398941341,1766011837875,-626.07966912,0.00038491,120]
[398941343,1766011837886,-1151.84785288,0.00038491,120]
[398941345,1766011837895,-1777.927522,0.00038491,120]
[398941347,1766011837904,-1777.927522,0.00038491,120]
[398941349,1766011837912,-1777.927522,0.00038491,120]
[398941351,1766011837921,-1777.927522,0.00038491,120]
[398941353,1766011837930,-1777.927522,0.00038491,120]
[398941355,1766011837939,-1777.927522,0.00038491,120]
[398941357,1766011837947,-1777.927522,0.00038491,120]
[398941359,1766011837956,-1777.927522,0.00038491,120]
[398941361,1766011837965,-1777.927522,0.00038491,120]
[398941363,1766011837974,-1777.927522,0.00038491,120]
[398941365,1766011837982,-1777.927522,0.00038491,120]
[398941367,1766011837991,-1777.927522,0.00038491,120]
[398941369,1766011838000,-1777.927522,0.00038491,120]
[398941371,1766011838010,-1777.927522,0.00038491,120]
[398941373,1766011838019,-1777.927522,0.00038491,120]
[398941375,1766011838028,-1777.927522,0.00038491,120]
[398941377,1766011838039,-632.30375633,0.00038491,120]
[398941379,1766011838051,-1145.62375738,0.00038491,120]
[398941381,1766011838063,-151.0,0.00038491,120]
[398941383,1766011838072,-151.0,0.00038491,120]
[398941385,1766011838082,-151.0,0.00038491,120]
[398941387,1766011838091,-151.814816,0.00038491,120]
[398941389,1766011838101,-151.814816,0.00038491,120]
[398941391,1766011838110,-151.814816,0.00038491,120]
[398941394,1766011838124,-151.814816,0.00038491,120]
[398941396,1766011838144,-151.814816,0.00038491,120]
[398941398,1766011838159,-151.0,0.00038491,120]
[398941400,1766011838169,-151.814816,0.00038491,120]
[398941402,1766011838178,-151.814816,0.00038491,120]
[398941404,1766011838187,-151.814816,0.00038491,120]
[398941406,1766011838196,-151.814816,0.00038491,120]
[398941408,1766011838206,-151.0,0.00038491,120]
[398941410,1766011838215,-151.814816,0.00038491,120]
[398941412,1766011838226,-151.0,0.00038491,120]
[398941413,1766011838237,-151.814816,0.00038491,120]
[398941415,1766011838246,-151.0,0.00038491,120]
[398941417,1766011838256,-151.814816,0.00038491,120]
[398941420,1766011838265,-151.0,0.00038491,120]
[398941422,1766011838275,-151.814816,0.00038491,120]
[398941423,1766011838284,-151.0,0.00038491,120]
[398941426,1766011838293,-151.814816,0.00038491,120]
[398941428,1766011838303,-151.0,0.00038491,120]
[398941430,1766011838313,-151.814816,0.00038491,120]
[398941431,1766011838324,-151.0,0.00038491,120]
[398941432,1766011838334,-151.814816,0.00038491,120]
[398941433,1766011838344,-151.0,0.00038491,120]
[398941434,1766011838353,-151.814816,0.00038491,120]
[398941435,1766011838362,-151.0,0.00038491,120]
[398941436,1766011838371,-151.814816,0.00038491,120]
[398941437,1766011838380,-259.169058,0.00038491,120]
[398941438,1766011838390,-151.814816,0.00038491,120]
[398941439,1766011838399,-151.814824,0.00038491,120]
[398941440,1766011838408,-151.0,0.00038491,120]
[398941441,1766011838417,-151.0,0.00038491,120]
[398941442,1766011838427,-2765.221173,0.00038491,120]
[398941443,1766011838436,-2765.221173,0.00038491,120]
[398941444,1766011838445,-2765.221173,0.00038491,120]
[398941445,1766011838455,-2765.221173,0.00038491,120]
[398941446,1766011838464,-2765.221173,0.00038491,120]
[398941447,1766011838473,-2765.221173,0.00038491,120]
[398941448,1766011838482,-2765.221173,0.00038491,120]
[398941449,1766011838492,-2765.221173,0.00038491,120]
[398941450,1766011838501,-2765.221173,0.00038491,120]
[398941451,1766011838510,-2765.221173,0.00038491,120]
[398941452,1766011838519,-2765.221173,0.00038491,120]
[398941453,1766011838529,-2765.221173,0.00038491,120]
[398941454,1766011838538,-2765.221173,0.00038491,120]
[398941455,1766011838547,-2765.221173,0.00038491,120]
[398941456,1766011838557,-2467.05243316,0.00038491,120]
[398941587,1766011839857,-298.16873984,0.00038491,120]
[398941589,1766011839867,-2765.221173,0.00038491,120]
[398941592,1766011839876,-2765.221173,0.00038491,120]
[398941593,1766011839886,-2765.221173,0.00038491,120]
[398941595,1766011839895,-2765.221173,0.00038491,120]
[398941597,1766011839904,-2765.221166,0.00038491,120]
[398941599,1766011839912,-151.0,0.00038491,120]
[398941601,1766011839921,-151.0,0.00038491,120]
[398941603,1766011839930,-151.0,0.00038491,120]
[398941605,1766011839938,-151.0,0.00038491,120]
[398941607,1766011839949,-239.000074,0.00038491,120]
[398941610,1766011839958,-723.870476,0.00038491,120]
[398941611,1766011839967,-723.870476,0.00038491,120]
[398941613,1766011839976,-723.870476,0.00038491,120]
[398941616,1766011839985,-723.870476,0.00038491,120]
[398941617,1766011839994,-723.870476,0.00038491,120]
[398941619,1766011840003,-1714.492213,0.00038491,120]
[398941621,1766011840012,-723.870476,0.00038491,120]
[398941624,1766011840021,-1714.492213,0.00038491,120]
[398941626,1766011840030,-723.870476,0.00038491,120]
[398941628,1766011840039,-1714.492213,0.00038491,120]
[398941629,1766011840048,-723.870476,0.00038491,120]
[398941631,1766011840061,-1714.492213,0.00038491,120]
[398941634,1766011840070,-723.870476,0.00038491,120]
[398941636,1766011840079,-1714.492213,0.00038491,120]
[398941638,1766011840088,-723.870476,0.00038491,120]
[398941640,1766011840098,-1714.492213,0.00038491,120]
[398941642,1766011840107,-723.870476,0.00038491,120]
[398941644,1766011840115,-1714.492213,0.00038491,120]
[398941646,1766011840125,-723.870476,0.00038491,120]
[398941647,1766011840137,-723.870476,0.00038491,120]
[398941650,1766011840147,-723.870476,0.00038491,120]
[398941651,1766011840156,-1714.492213,0.00038491,120]
[398941654,1766011840166,-723.870476,0.00038491,120]
[398941656,1766011840175,-723.870476,0.00038491,120]
[398941658,1766011840186,-1714.492213,0.00038491,120]
[398941660,1766011840198,-723.870476,0.00038491,120]
[398941662,1766011840208,-1714.492213,0.00038491,120]
[398941664,1766011840218,-723.870476,0.00038491,120]
[398941666,1766011840228,-1714.492213,0.00038491,120]
[398941668,1766011840237,-723.870476,0.00038491,120]
[398941670,1766011840247,-1714.492213,0.00038491,120]
[398941672,1766011840256,-723.870478,0.00038491,120]
[398941674,1766011840269,-1714.492213,0.00038491,120]
[398941676,1766011840278,-1714.492213,0.00038491,120]
[398941678,1766011840288,-1714.492213,0.00038491,120]
[398941680,1766011840297,-1714.492213,0.00038491,120]
[398941682,1766011840306,-1714.492213,0.00038491,120]
[398941684,1766011840315,-1714.492213,0.00038491,120]
[398941686,1766011840324,-1714.492213,0.00038491,120]
[398941688,1766011840333,-1714.492211,0.00038491,120]
[398941690,1766011840343,-151.0,0.00038491,120]
[398941692,1766011840352,-151.0,0.00038491,120]
[398941694,1766011840361,-151.0,0.00038491,120]
[398941696,1766011840370,-151.0,0.00038491,120]
[398941698,1766011840379,-151.0,0.00038491,120]
[398941700,1766011840389,-151.0,0.00038491,120]
[398941702,1766011840398,-151.0,0.00038491,120]
[398941704,1766011840407,-151.0,0.00038491,120]
[398941706,1766011840416,-151.0,0.00038491,120]
[398941708,1766011840425,-151.0,0.00038491,120]
[398941710,1766011840435,-151.0,0.00038491,120]
[398941712,1766011840444,-151.0,0.00038491,120]
[398941714,1766011840454,-151.0,0.00038491,120]
[398941716,1766011840464,-151.0,0.00038491,120]
[398941718,1766011840473,-151.0,0.00038491,120]
[398941720,1766011840482,-151.0,0.00038491,120]
[398941722,1766011840491,-214.19924,0.00038491,120]
[398941724,1766011840500,-210.170132,0.00038491,120]
[398941726,1766011840509,-210.170132,0.00038491,120]
[398941728,1766011840519,-210.170132,0.00038491,120]
[398941730,1766011840528,-210.170132,0.00038491,120]
[398941732,1766011840537,-210.170132,0.00038491,120]
[398941734,1766011840546,-210.170132,0.00038491,120]
[398941736,1766011840555,-210.170132,0.00038491,120]
[398941738,1766011840564,-210.170132,0.00038491,120]
[398941740,1766011840573,-210.170132,0.00038491,120]
[398941742,1766011840583,-210.170132,0.00038491,120]
[398941744,1766011840593,-210.170132,0.00038491,120]
[398941746,1766011840602,-210.170132,0.00038491,120]
[398941748,1766011840611,-210.170132,0.00038491,120]
[398941750,1766011840619,-210.170132,0.00038491,120]
[398941752,1766011840628,-210.170132,0.00038491,120]
[398941754,1766011840638,-210.170132,0.00038491,120]
[398941756,1766011840647,-210.170132,0.00038491,120]
[398941758,1766011840656,-210.170132,0.00038491,120]
[398941760,1766011840665,-210.170132,0.00038491,120]
[398941762,1766011840674,-210.170132,0.00038491,120]
[398941764,1766011840683,-151.0,0.00038491,120]
[398941766,1766011840692,-151.0,0.00038491,120]
[398941768,1766011840701,-3022.532422,0.00038491,120]
[398941770,1766011840710,-151.0,0.00038491,120]
[398941772,1766011840719,-3022.532422,0.00038491,120]
[398941774,1766011840728,-151.0,0.00038491,120]
[398941776,1766011840738,-3022.532422,0.00038491,120]
[398941778,1766011840747,-3022.532422,0.00038491,120]
[398941780,1766011840756,-151.0,0.00038491,120]
[398941782,1766011840766,-3022.532422,0.00038491,120]
[398941784,1766011840775,-151.0,0.00038491,120]
[398941786,1766011840784,-151.0,0.00038491,120]
[398941788,1766011840793,-3022.532422,0.00038491,120]
[398941790,1766011840801,-3022.532422,0.00038491,120]
[398941792,1766011840811,-151.0,0.00038491,120]
[398941794,1766011840820,-151.0,0.00038491,120]
[398941796,1766011840829,-3022.532422,0.00038491,120]
[398941798,1766011840838,-151.0,0.00038491,120]
[398941799,1766011840847,-3022.532422,0.00038491,120]
[398941802,1766011840856,-151.0,0.00038491,120]
[398941804,1766011840866,-3022.532422,0.00038491,120]
[398941805,1766011840875,-151.0,0.00038491,120]
[398941807,1766011840884,-3022.532422,0.00038491,120]
[398941809,1766011840893,-151.0,0.00038491,120]
[398941811,1766011840903,-3022.532422,0.00038491,120]
[398941813,1766011840912,-151.0,0.00038491,120]
[398941816,1766011840922,-3022.532422,0.00038491,120]
[398941818,1766011840931,-151.0,0.00038491,120]
[398941820,1766011840939,-3022.532422,0.00038491,120]
[398941822,1766011840948,-3022.532422,0.00038491,120]
[398941824,1766011840957,-151.0,0.00038491,120]
[398941826,1766011840966,-3022.532422,0.00038491,120]
[398941828,1766011840975,-194.058136,0.00038491,120]
[398941830,1766011840984,-3022.532422,0.00038491,120]
[398941832,1766011840993,-3022.532422,0.00038491,120]
[398941834,1766011841002,-3022.532422,0.00038491,120]
[398941836,1766011841011,-3022.532431,0.00038491,120]
[398941837,1766011841019,-221.400793,0.00038491,120]
[398941839,1766011841029,-221.400793,0.00038491,120]
[398941842,1766011841038,-221.400793,0.00038491,120]
[398941843,1766011841047,-221.400793,0.00038491,120]
[398941846,1766011841057,-221.400793,0.00038491,120]
[398941848,1766011841069,-221.400793,0.00038491,120]
[398941849,1766011841079,-221.400793,0.00038491,120]
[398941852,1766011841088,-221.400793,0.00038491,120]
[398941853,1766011841099,-221.400793,0.00038491,120]
[398941855,1766011841108,-151.0,0.00038491,120]
[398941857,1766011841117,-221.400793,0.00038491,120]
[398941859,1766011841126,-151.0,0.00038491,120]
[398941861,1766011841138,-221.400793,0.00038491,120]
[398941863,1766011841148,-221.400793,0.00038491,120]
[398941865,1766011841158,-221.400793,0.00038491,120]
[398941867,1766011841168,-221.400793,0.00038491,120]
[398941870,1766011841178,-221.400793,0.00038491,120]
[398941871,1766011841187,-221.400793,0.00038491,120]
[398941873,1766011841196,-221.400793,0.00038491,120]
[398941875,1766011841206,-221.400793,0.00038491,120]
[398941877,1766011841215,-221.400793,0.00038491,120]
[398941879,1766011841224,-221.400794,0.00038491,120]
[398941891,1766011841326,-369.79,0.000385,30]
[398941893,1766011841335,-7507.76,0.000385,2]
[398941895,1766011841344,-614.17,0.000385,7]
[398941897,1766011841353,-500.0,0.000385,30]
[398941899,1766011841362,-151.0,0.000385,17]
[398941901,1766011841371,-200.0,0.00038501,2]
[398941903,1766011841380,-574.12855637,0.00038501,2]
[398941905,1766011841388,-250.0,0.00038501,2]
[398941907,1766011841397,-250.0,0.00038501,2]
[398941909,1766011841406,-256.76277994,0.00038501,2]
[398941911,1766011841415,-1000.0,0.00038501,2]
[398941913,1766011841424,-323.98320366,0.00038501,2]
[398941915,1766011841433,-150.0,0.00038516,2]
[398941917,1766011841442,-92114.56898121,0.00038516,2]
[398941919,1766011841451,-300.0,0.00038516,2]
[398941921,1766011841460,-22870.12729106,0.00038516,2]
[398941923,1766011841469,-3919.28408269,0.00038516,2]
[398941925,1766011841478,-817.23375247,0.00038516,2]
[398941927,1766011841487,-346.69773513,0.00038516,2]
[398941929,1766011841495,-260.57444222,0.00038516,2]
[398941931,1766011841504,-329.96266131,0.00038516,2]
[398941933,1766011841513,-11316.83255952,0.00038516,2]
[398941935,1766011841522,-294.48379636,0.00038516,2]
[398941937,1766011841531,-52192.15470193,0.00038516,2]
[398941939,1766011841540,-643.01018063,0.00038516,2]
[398941941,1766011841549,-1374.16937841,0.00038516,2]
[398941943,1766011841558,-158.03541442,0.00038516,2]
[398941945,1766011841567,-2932.93570293,0.00038516,2]
[398941947,1766011841576,-708.91056946,0.00038516,2]
[398941949,1766011841585,-21769.71975134,0.00038516,2]
[398941951,1766011841594,-6356.55860868,0.00038516,2]
[398941953,1766011841602,-159.04375845,0.00038516,2]
[398941955,1766011841611,-2183.96749167,0.00038516,2]
[398941957,1766011841620,-1732.76898777,0.00038516,2]
[398941959,1766011841629,-2095.18657457,0.00038516,2]
[398941961,1766011841638,-7550.93171797,0.00038516,2]
[398941963,1766011841647,-57199.71187643,0.00038516,2]
[398941965,1766011841656,-512.08810816,0.00038516,2]
[398941967,1766011841664,-185.5079459,0.00038516,2]
[398941969,1766011841673,-472.00409103,0.00038516,2]
[398941971,1766011841682,-30722.76596986,0.00038516,2]
[398941973,1766011841691,-190.81379678,0.00038516,2]
[398941975,1766011841699,-1205.53314805,0.00038516,2]
[398941977,1766011841708,-1409.09302596,0.00038516,2]
[398941979,1766011841717,-5949.66661646,0.00038516,2]
[398941981,1766011841726,-10778.85292498,0.00038516,2]
[398941983,1766011841735,-656.86197427,0.00038516,2]
[398941985,1766011841744,-204.73525323,0.00038516,2]
[398941987,1766011841752,-2920.0,0.00038516,2]
[398941989,1766011841761,-199.87787196,0.00038516,2]
[398941991,1766011841771,-388.19516858,0.00038516,2]
[398941993,1766011841780,-203.0979547,0.00038516,2]
[398941995,1766011841790,-3175.62078313,0.00038516,2]
[398941997,1766011841799,-168.01918474,0.00038516,2]
[398941999,1766011841807,-178732.47188041,0.00038516,2]
[398942001,1766011841816,-151.64900891,0.00038516,2]
[398942003,1766011841825,-260.78634227,0.00038516,2]
[398942005,1766011841833,-3800.29177727,0.00038516,2]
[398942007,1766011841842,-674.88050788,0.00038516,2]
[398942009,1766011841851,-618.0,0.00038516,2]
[398942011,1766011841859,-1674.9124304,0.00038516,2]
[398942012,1766011841868,-326.48414247,0.00038516,2]
[398942014,1766011841877,-234.14485683,0.00038516,2]
[398942016,1766011841886,-328.29989666,0.00038516,2]
[398942018,1766011841896,-132101.67144307,0.00038516,2]
[398942082,1766011842784,-32328.24231336,0.00038516,2]
[398942363,1766011845851,-371.636413,0.00038491,120]
[398942364,1766011845860,-371.636413,0.00038491,120]
[398942366,1766011845869,-371.636413,0.00038491,120]
[398942367,1766011845879,-368.89908883,0.00038491,120]
[398942369,1766011845890,-2.73732417,0.00038491,120]
[398942371,1766011845899,-371.636413,0.00038491,120]
[398942372,1766011845908,-371.636413,0.00038491,120]
[398942374,1766011845917,-371.636413,0.00038491,120]
[398942376,1766011845926,-371.636413,0.00038491,120]
[398942377,1766011845935,-371.636413,0.00038491,120]
[398942379,1766011845944,-2732.38281089,0.00038516,2]
[398946831,1766012092964,150.0,6.849e-05,2]
[398946832,1766012093489,150.0,7.175e-05,2]
[398946849,1766013031746,-804.01911172,0.00012407,2]
[398946850,1766013031758,-194.98088828,0.00012407,2]
[398946851,1766013031767,-139.02011173,0.00012407,2]
[398946901,1766013038007,-10.97988827,0.00012407,2]
[398946902,1766013038017,-595.0,0.00012407,2]
[398946903,1766013038026,-2201.69809285,0.00013167,2]
[398946904,1766013038036,-1200.0,0.00013266,2]
[398946905,1766013038046,-300.0,0.00013266,2]
[398946906,1766013038055,-300.0,0.00013266,2]
[398946907,1766013038065,-1200.0,0.00013266,2]
[398946908,1766013038075,-378.80390583,0.00013267,2]
[398946909,1766013038084,-500.0,0.00013267,2]
[398946910,1766013038094,-500.0,0.00013267,2]
[398946911,1766013038104,-500.0,0.00013267,2]
[398946912,1766013038113,-500.0,0.00013267,2]
[398946913,1766013038122,-500.0,0.00013267,2]
[398946914,1766013038132,-500.0,0.00013267,2]
[398946915,1766013038141,-500.0,0.00013267,2]
[398946916,1766013038150,-500.0,0.00013267,2]
[398946917,1766013038159,-500.0,0.00013267,2]
[398946918,1766013038168,-500.0,0.00013267,2]
[398946919,1766013038178,-500.0,0.00013267,2]
[398946921,1766013038187,-500.0,0.00013267,2]
[398946923,1766013038196,-500.0,0.00013267,2]
[398946924,1766013038205,-500.0,0.00013267,2]
[398946925,1766013038214,-500.0,0.00013267,2]
[398946926,1766013038223,-500.0,0.00013267,2]
[398946927,1766013038232,-500.0,0.00013267,2]
[398946928,1766013038242,-500.0,0.00013267,2]
[398946929,1766013038251,-500.0,0.00013267,2]
[398946930,1766013038260,-500.0,0.00013267,2]
[398946931,1766013038269,-500.0,0.00013267,2]
[398946932,1766013038279,-500.0,0.00013267,2]
[398946933,1766013038287,-500.0,0.00013267,2]
[398946934,1766013038296,-500.0,0.00013267,2]
[398946935,1766013038306,-500.0,0.00013267,2]
[398946936,1766013038315,-500.0,0.00013267,2]
[398946937,1766013038323,-500.0,0.00013267,2]
[398946938,1766013038333,-500.0,0.00013267,2]
[398946939,1766013038342,-500.0,0.00013267,2]
[398946940,1766013038351,-500.0,0.00013267,2]
[398946941,1766013038362,-500.0,0.00013267,2]
[398946942,1766013038371,-500.0,0.00013267,2]
[398946943,1766013038380,-500.0,0.00013267,2]
[398946944,1766013038389,-500.0,0.00013267,2]
[398946945,1766013038399,-500.0,0.00013267,2]
[398946946,1766013038409,-500.0,0.00013267,2]
[398946947,1766013038418,-500.0,0.00013267,2]
[398946948,1766013038427,-500.0,0.00013267,2]
[398946949,1766013038439,-500.0,0.00013267,2]
[398946950,1766013038448,-612.50107629,0.00013267,2]
[398946951,1766013038458,-500.0,0.00013267,2]
[398946952,1766013038467,-500.0,0.00013267,2]
[398946953,1766013038477,-500.0,0.00013267,2]
[398946954,1766013038486,-500.0,0.00013267,2]
[398946955,1766013038495,-500.0,0.00013267,2]
[398946956,1766013038504,-500.0,0.00013267,2]
[398946957,1766013038514,-500.0,0.00013267,2]
[398946958,1766013038524,-500.0,0.00013267,2]
[398946959,1766013038534,-450.0,0.00013267,2]
[398946960,1766013038543,-500.0,0.00013267,2]
[398946961,1766013038553,-500.0,0.00013267,2]
[398946962,1766013038563,-500.0,0.00013267,2]
[398946963,1766013038572,-500.0,0.00013267,2]
[398946964,1766013038582,-500.0,0.00013267,2]
[398946965,1766013038592,-500.0,0.00013267,2]
[398946966,1766013038601,-170.14,0.00013268,2]
[398946967,1766013038610,-501.37204956,0.00013273,2]
[398946968,1766013038619,-501.13384156,0.00013273,2]
[398946969,1766013038628,-500.0,0.00013273,2]
[398946970,1766013038637,-502.10412581,0.00013273,2]
[398946971,1766013038647,-649.40153114,0.00013273,2]
[398946972,1766013038656,-500.0,0.00013273,2]
[398946973,1766013038665,-642.15871311,0.00013273,2]
[398946974,1766013038674,-500.0,0.00013273,2]
[398946975,1766013038683,-500.57053435,0.00013273,2]
[398946976,1766013038693,-500.0,0.00013273,2]
[398946977,1766013038702,-501.18838989,0.00013273,2]
[398946978,1766013038711,-500.60154888,0.00013273,2]
[398946979,1766013038720,-501.8140395,0.00013273,2]
[398946980,1766013038732,-217.45987348,0.00013273,2]
[398946981,1766013038741,-500.49688915,0.00013273,2]
[398946982,1766013038751,-500.0,0.00013273,2]
[398946983,1766013038759,-500.0,0.00013273,2]
[398946984,1766013038768,-500.61232405,0.00013273,2]
[398946985,1766013038778,-500.0,0.00013273,2]
[398946986,1766013038787,-424.86427209,0.00013273,2]
[398946987,1766013038796,-165.18374839,0.00013273,2]
[398946988,1766013038805,-500.18628886,0.00013273,2]
[398946989,1766013038814,-167.11158979,0.00013273,2]
[398946990,1766013038824,-161.50295556,0.00013273,2]
[398946991,1766013038833,-216.59987534,0.00013273,2]
[398946992,1766013038842,-500.0,0.00013273,2]
[398946993,1766013038852,-500.0,0.00013273,2]
[398946994,1766013038862,-500.0,0.00013273,2]
[398946995,1766013038871,-500.62809859,0.00013273,2]
[398946996,1766013038881,-500.22263888,0.00013273,2]
[398946997,1766013038890,-501.10680594,0.00013273,2]
[398946998,1766013038899,-282.76842252,0.00013273,2]
[398946999,1766013038908,-500.37257534,0.00013273,2]
[398947000,1766013038917,-500.78069966,0.00013273,2]
[398947001,1766013038927,-500.18773582,0.00013273,2]
[398947002,1766013038936,-500.34016857,0.00013273,2]
[398947003,1766013038946,-268.1488442,0.00013273,2]
[398947004,1766013038955,-500.0,0.00013273,2]
[398947005,1766013038965,-500.0,0.00013273,2]
[398947006,1766013038975,-500.42564553,0.00013273,2]
[398947007,1766013038984,-500.0,0.00013273,2]
[398947008,1766013038994,-500.94757836,0.00013273,2]
[398947009,1766013039003,-339.5809273,0.00013273,2]
[398947010,1766013039013,-500.0,0.00013273,2]
[398947011,1766013039022,-204.65082749,0.00013273,2]
[398947012,1766013039031,-500.1181424,0.00013273,2]
[398947013,1766013039040,-500.96042768,0.00013273,2]
[398947014,1766013039049,-500.34849808,0.00013273,2]
[398947015,1766013039058,-500.39595032,0.00013273,2]
[398947016,1766013039068,-500.22913231,0.00013273,2]
[398947017,1766013039077,-325.74902022,0.00013273,2]
[398947018,1766013039087,-527.44002904,0.00013273,2]
[398947019,1766013039096,-500.0,0.00013273,2]
[398947020,1766013039105,-185.05475624,0.00013273,2]
[398947021,1766013039115,-500.67876244,0.00013273,2]
[398947022,1766013039124,-503.24736115,0.00013273,2]
[398947023,1766013039133,-500.0,0.00013273,2]
[398947024,1766013039142,-500.23519391,0.00013273,2]
[398947025,1766013039152,-158.98965036,0.00013273,2]
[398947026,1766013039161,-500.0,0.00013273,2]
[398947027,1766013039171,-502.79525564,0.00013273,2]
[398947028,1766013039180,-500.0,0.00013273,2]
[398947029,1766013039189,-231.91732573,0.00013273,2]
[398947030,1766013039198,-500.25796284,0.00013273,2]